bitfinex/quotes_ETHUSD_20230116
["timestamp","ask_amount","ask_price","bid_price","bid_amount"]
[1673900481996,17.83410101,1589.9,1589.7,0.10808846]
[1673900482296,1.86039783,1589.8,1589.7,0.10808846]
[1673900482667,14.44057783,1589.8,1589.7,0.10808846]
[1673900484186,15.83433575,1589.8,1589.7,0.10808846]
[1673900484358,22.12442575,1589.8,1589.7,0.10808846]
[1673900484568,24.86233843,1589.8,1589.7,0.10808846]
[1673900485119,24.86314741,1589.8,1589.7,0.10808846]
[1673900485337,23.48741269,1589.8,1589.7,0.10808846]
[1673900485869,28.02503676,1589.8,1589.7,0.10808846]
[1673900486043,20.01308313,1589.8,1589.7,0.10808846]
[1673900486658,20.94497314,1589.8,1589.7,0.10808846]
[1673900486823,26.16463893,1589.8,1589.7,0.10808846]
[1673900487046,28.16463893,1589.8,1589.7,0.10808846]
[1673900487228,30.97386889,1589.8,1589.7,0.10808846]
[1673900487569,18.87267,1589.6,1589.5,0.11378615]
[1673900487725,27.30698978,1589.6,1589.5,0.11378615]
[1673900488189,28.70238968,1589.6,1589.5,0.11378615]
[1673900488727,28.72122186,1589.6,1589.5,0.11378615]
[1673900489871,26.85979315,1589.6,1589.5,0.11378615]
[1673900491083,23.74316908,1589.6,1589.5,0.11378615]
[1673900492291,22.34776918,1589.6,1589.5,0.11378615]
[1673900492872,9.76598918,1589.6,1589.5,0.11378615]
[1673900494249,17.45227908,1589.6,1589.5,0.11378615]
[1673900494918,26.85979315,1589.6,1589.5,0.11378615]
[1673900495125,28.72122186,1589.6,1589.5,0.11378615]
[1673900495602,26.85979315,1589.6,1589.5,0.11378615]
[1673900496491,27.32582196,1589.6,1589.5,0.11378615]
[1673900496684,31.65260785,1589.6,1589.5,0.11378615]
[1673900496895,29.32582196,1589.6,1589.5,0.11378615]
[1673900497228,32.32582196,1589.6,1589.5,0.11378615]
[1673900497613,32.79117914,1589.6,1589.5,0.11378615]
[1673900497841,34.65430028,1589.6,1589.5,0.11378615]
[1673900498395,32.79117914,1589.6,1589.5,0.11378615]
[1673900498560,34.65499639,1589.6,1589.5,0.11378615]
[1673900498752,34.20517914,1589.6,1589.5,0.11378615]
[1673900498965,31.87839325,1589.6,1589.5,0.11378615]
[1673900499216,34.20852709,1589.6,1589.5,0.11378615]
[1673900499541,31.87839325,1589.6,1589.5,0.11378615]
[1673900499759,32.20847613,1589.6,1589.5,0.11378615]
[1673900500066,20.9203582,1589.6,1589.5,0.11378615]
[1673900500282,22.3175601,1589.6,1589.5,0.11378615]
[1673900500488,20.45408108,1589.6,1589.5,0.11378615]
[1673900500879,14.16319108,1589.6,1589.5,0.11378615]
[1673900501186,2.05609918,1589.6,1589.5,0.11378615]
[1673900501818,1.61883218,1589.6,1589.5,0.11378615]
[1673900502715,10.4689019,1589.7,1589.5,0.11378615]
[1673900502874,22.6598019,1589.8,1589.5,0.11378615]
[1673900503084,18.2448019,1589.8,1589.5,12.69634615]
[1673900503314,1.3972019,1589.8,1589.5,12.69634615]
[1673900503875,1.3972019,1589.9,1589.5,14.59514477]
[1673900504821,3.26068092,1589.9,1589.5,14.59514477]
[1673900504983,1.3972019,1589.9,1589.5,14.59514477]
[1673900506884,1.3972019,1589.9,1589.5,20.88642477]
[1673900507942,3.26068092,1589.9,1589.5,20.88642477]
[1673900508286,1.3972019,1589.8,1589.5,20.88642477]
[1673900508496,1.3972019,1589.8,1589.5,20.88371238]
[1673900508898,3.26068092,1589.9,1589.5,20.88371238]
[1673900509381,1.3972019,1589.8,1589.5,20.88371238]
[1673900509647,1.3972019,1589.8,1589.5,14.59243238]
[1673900510916,1.3972019,1589.8,1589.5,12.69363376]
[1673900511825,3.26068092,1589.8,1589.5,12.69363376]
[1673900512032,1.3972019,1589.7,1589.5,12.69363376]
[1673900513109,1.3972019,1589.7,1589.5,0.11107376]
[1673900513657,1.3972019,1589.6,1589.5,0.11107376]
[1673900513838,1.72326999,1589.6,1589.5,0.11107376]
[1673900515811,3.58674901,1589.6,1589.5,0.11107376]
[1673900516013,1.72326999,1589.6,1589.5,0.11107376]
[1673900517242,1.3972019,1589.6,1589.5,12.69363376]
[1673900517537,3.26068092,1589.7,1589.5,12.69363376]
[1673900517749,1.3972019,1589.6,1589.5,6.40235376]
[1673900520680,1.86347902,1589.7,1589.5,10.93997783]
[1673900520857,1.86347902,1589.9,1589.6,5.11662407]
[1673900521021,4.19356191,1590.0,1589.7,22.49975648]
[1673900521248,1.86347902,1589.9,1589.7,22.49975648]
[1673900521583,4.1935619,1589.9,1589.7,22.49975648]
[1673900521780,1.86347902,1589.8,1589.7,22.49975648]
[1673900522113,4.1935619,1589.9,1589.7,19.38313241]
[1673900522263,1.86347902,1589.8,1589.7,19.38313241]
[1673900522473,1.86347902,1589.8,1589.7,13.32264241]
[1673900522733,1.76347902,1589.8,1589.7,13.32264241]
[1673900525526,4.0935619,1589.8,1589.6,6.29087]
[1673900525775,2.33008288,1589.8,1589.5,17.66175376]
[1673900526001,2.33008288,1589.8,1589.5,12.69345376]
[1673900526214,2.33008288,1589.8,1589.5,6.40217376]
[1673900527775,2.33008288,1589.8,1589.5,20.55410614]
[1673900527999,2.33008288,1589.9,1589.7,18.87147]
[1673900528682,2.33008288,1590.0,1589.8,0.23]
[1673900528892,2.33008288,1590.0,1589.8,12.8097]
[1673900529559,1.40312503,1589.9,1589.8,12.8097]
[1673900529769,1.40312503,1589.9,1589.8,15.03138141]
[1673900529940,1.40312503,1589.9,1589.8,21.32147141]
[1673900530158,1.99443411,1590.0,1589.8,21.32147141]
[1673900530736,3.86490084,1590.0,1589.8,21.32147141]
[1673900530953,1.40312503,1589.9,1589.8,15.03138141]
[1673900531097,3.27359176,1589.9,1589.8,15.03138141]
[1673900531309,3.27309047,1589.9,1589.8,8.51139141]
[1673900531534,1.87046673,1589.9,1589.8,6.28971]
[1673900532704,1.87046673,1589.9,1589.7,12.5808]
[1673900532932,1.4029753,1589.8,1589.7,12.5808]
[1673900534376,1.4029753,1589.8,1589.7,18.87129]
[1673900535253,3.27344203,1589.9,1589.7,19.10129]
[1673900535570,1.4029753,1589.9,1589.8,1.910129]
[1673900535731,3.27344203,1589.9,1589.8,20.780399]
[1673900536270,1.4029753,1589.9,1589.8,20.780399]
[1673900536985,3.27344203,1590.0,1589.8,20.780399]
[1673900537467,1.4029753,1590.0,1589.8,20.780399]
[1673900537637,1.4029753,1590.0,1589.9,2.0780399]
[1673900537842,1.4029753,1590.0,1589.9,8.3677399]
[1673900537843,3.86419308,1590.0,1589.9,8.3677399]
[1673900538066,3.86419308,1590.0,1589.9,11.48436397]
[1673900538269,0.59075105,1590.0,1589.9,25.71476397]
[1673900538795,1.4029753,1590.1,1589.9,25.71476397]
[1673900539011,1.4029753,1590.1,1590.0,2.5714764]
[1673900539351,1.87046673,1590.1,1590.0,21.4393764]
[1673900539510,3.27404967,1590.1,1590.0,18.8679]
[1673900539720,1.87046673,1590.1,1590.0,18.8679]
[1673900540388,3.27478572,1590.1,1590.0,18.8679]
[1673900540790,1.87046673,1590.1,1590.0,18.8679]
[1673900541310,3.27439074,1590.1,1590.0,18.8679]
[1673900541539,3.27439074,1590.1,1590.0,21.2971564]
[1673900541765,1.87046673,1590.1,1590.0,21.2971564]
[1673900542199,3.27490937,1590.1,1590.0,21.2971564]
[1673900542732,4.20054961,1590.1,1589.9,6.51958]
[1673900542906,12.10526214,1590.3,1589.7,7.71146]
[1673900542907,4.20252949,1590.0,1589.7,7.71146]
[1673900543117,1.40397675,1589.9,1589.8,6.29002]
[1673900543348,1.40397675,1589.9,1589.8,8.63087641]
[1673900543510,1.87244661,1590.0,1589.8,8.63087641]
[1673900543511,3.27642336,1590.0,1589.8,8.63087641]
[1673900544097,3.27642336,1590.0,1589.8,14.92096641]
[1673900544098,1.40397675,1590.0,1589.8,14.92096641]
[1673900544661,3.27642336,1590.0,1589.8,14.92096641]
[1673900544924,3.27642336,1590.0,1589.9,14.06868025]
[1673900546387,3.27642336,1590.0,1589.9,12.8094]
[1673900547464,3.27642336,1590.0,1589.9,6.5197]
[1673900547607,1.87244661,1590.0,1589.9,6.5197]
[1673900548989,3.27702242,1590.0,1589.9,6.5197]
[1673900550285,3.27702242,1590.0,1589.9,6.2897]
[1673900551767,1.87244661,1590.0,1589.9,6.2897]
[1673900551913,3.27694549,1590.0,1589.9,6.2897]
[1673900552590,1.40449888,1590.0,1589.9,18.8691]
[1673900552779,1.40449888,1590.0,1589.9,21.385012]
[1673900553649,2.37244661,1590.1,1589.9,22.795012]
[1673900553650,1.90449888,1590.1,1589.9,22.795012]
[1673900553863,1.90449888,1590.1,1589.9,26.14163607]
[1673900555892,0.5,1590.1,1589.9,26.14163607]
[1673900556101,0.5,1590.1,1590.0,21.48206361]
[1673900556477,1.90449888,1590.1,1590.0,21.48206361]
[1673900556889,0.5,1590.1,1590.0,21.48206361]
[1673900557103,1.90449888,1590.1,1590.0,21.48206361]
[1673900557358,1.90449888,1590.1,1590.0,26.24968768]
[1673900557748,1.90449888,1590.1,1590.0,6.2893]
[1673900557961,2.37244661,1590.1,1590.0,6.2893]
[1673900558367,3.7764776,1590.1,1590.0,6.2893]
[1673900558579,3.7764776,1590.1,1590.0,12.5786]
[1673900559364,1.90403099,1590.1,1590.0,22.21452407]
[1673900559675,1.90403099,1590.1,1590.0,25.20602148]
[1673900559894,3.77685501,1590.1,1590.0,25.20602148]
[1673900560069,3.77685429,1590.1,1590.0,25.20602148]
[1673900560698,1.90440768,1590.1,1590.0,25.20602148]
[1673900561321,1.90440768,1590.1,1590.0,22.21452407]
[1673900561567,3.77685429,1590.1,1590.0,9.40592407]
[1673900561777,2.37244661,1590.1,1590.0,6.2893]
[1673900563110,2.37244661,1590.1,1590.0,12.5786]
[1673900563310,1.90450262,1590.1,1590.0,19.0979]
[1673900563912,3.77694923,1590.1,1590.0,19.0979]
[1673900564776,2.37244661,1590.1,1590.0,19.0979]
[1673900564986,3.77607049,1590.1,1590.0,19.0979]
[1673900565450,3.77623191,1590.1,1590.0,19.0979]
[1673900565673,3.77623191,1590.1,1590.0,12.8086]
[1673900565843,2.37244661,1590.1,1590.0,12.8086]
[1673900566061,3.77620762,1590.1,1590.0,12.8086]
[1673900566250,2.37244661,1590.1,1590.0,12.8086]
[1673900567159,2.37244661,1590.1,1590.0,12.5786]
[1673900567339,4.70252949,1590.1,1590.0,12.5786]
[1673900567662,2.37244661,1590.1,1590.0,12.5786]
[1673900567987,4.70252949,1590.1,1590.0,12.57541563]
[1673900568161,2.37244661,1590.1,1590.0,12.57541563]
[1673900568667,2.84269956,1590.1,1590.0,12.57541563]
[1673900570285,5.17278244,1590.1,1590.0,12.57541563]
[1673900570497,2.37244661,1590.1,1590.0,18.86471563]
[1673900570829,2.37244661,1590.1,1590.0,12.57541563]
[1673900571039,4.70252949,1590.1,1590.0,12.57541563]
[1673900571262,2.83008288,1590.1,1590.0,12.57541563]
[1673900575509,2.83008288,1590.1,1589.9,6.28945]
[1673900575510,0.5,1590.1,1589.9,6.28945]
[1673900575876,0.5,1590.1,1589.7,6.29012]
[1673900575877,3.64015296,1590.1,1589.7,6.29012]
[1673900576094,1.40283016,1589.8,1589.7,12.58039]
[1673900576305,3.27327037,1589.8,1589.7,12.58039]
[1673900577482,1.40283016,1589.8,1589.7,12.58039]
[1673900577698,3.27327037,1589.8,1589.7,12.58039]
[1673900577871,3.27327037,1589.8,1589.7,18.87088]
[1673900578095,1.40283016,1589.8,1589.7,18.87088]
[1673900578274,3.27327037,1589.9,1589.7,18.87088]
[1673900579782,3.27327037,1589.9,1589.7,21.98750407]
[1673900580128,1.40283016,1589.9,1589.8,19.90227]
[1673900581326,3.27327037,1589.9,1589.8,19.90227]
[1673900581743,1.40283016,1589.9,1589.8,19.90227]
[1673900582165,3.27327037,1590.0,1589.8,23.01889407]
[1673900582438,1.40283016,1590.0,1589.8,23.01889407]
[1673900582598,1.40283016,1590.0,1589.8,26.09109548]
[1673900586534,1.40283016,1590.0,1589.9,3.11662407]
[1673900586848,1.40283016,1590.0,1589.9,22.21572407]
[1673900589021,1.40283016,1590.0,1589.9,6.2897]
[1673900589235,1.87044021,1590.0,1589.9,6.2897]
[1673900589467,4.67933952,1590.0,1589.9,6.2897]
[1673900590039,2.34128926,1590.0,1589.9,6.2897]
[1673900590428,2.34128926,1590.0,1589.9,6.28766543]
[1673900590952,4.67933952,1590.0,1589.9,6.28766543]
[1673900591155,2.34128926,1590.0,1589.9,6.28766543]
[1673900593215,1.87044021,1590.0,1589.9,6.28766543]
[1673900597150,3.27290072,1590.0,1589.9,12.57736543]
[1673900597686,1.40246051,1590.0,1589.9,15.6939895]
[1673900598007,0.5,1590.1,1590.0,0.93650998]
[1673900598170,0.5,1590.1,1590.0,11.53365098]
[1673900598525,0.5,1590.1,1590.0,30.40155098]
[1673900599938,0.5,1590.1,1590.0,37.96964415]
[1673900600173,3.35667917,1590.4,1590.1,2.0]
[1673900600174,0.08377845,1590.4,1590.1,2.0]
[1673900600380,0.08377845,1590.4,1590.2,29.91766407]
[1673900600746,0.08377845,1590.4,1590.3,6.10839048]
[1673900600919,0.08377845,1590.4,1590.3,22.21098407]
[1673900603221,0.08377845,1590.4,1590.3,23.63198407]
[1673900603433,0.08377845,1590.4,1590.3,26.63198407]
[1673900606329,0.08377845,1590.4,1590.3,25.21098407]
[1673900613473,0.08377845,1590.4,1590.3,26.63198407]
[1673900613688,0.08377845,1590.4,1590.3,29.92403348]
[1673900614714,0.08377845,1590.4,1590.3,31.34403348]
[1673900614973,8.45e-06,1590.4,1590.3,35.13210891]
[1673900615108,0.08136686,1590.6,1590.4,0.083]
[1673900615316,0.08136686,1590.6,1590.5,5.56962407]
[1673900615525,0.08136686,1590.6,1590.5,40.68088248]
[1673900615745,0.08377845,1590.7,1590.5,43.68088248]
[1673900615945,0.08377845,1590.7,1590.6,8.95862407]
[1673900616174,0.08377845,1590.7,1590.6,22.40882325]
[1673900616991,0.08750514,1590.8,1590.7,2.88499155]
[1673900617202,0.08750514,1590.8,1590.7,12.93701275]
[1673900617418,0.08750514,1590.8,1590.7,32.44297193]
[1673900620517,0.08750514,1590.8,1590.7,31.79663275]
[1673900620733,0.08750514,1590.8,1590.7,32.44297193]
[1673900621230,0.08638027,1590.9,1590.7,32.44297193]
[1673900621581,0.08638027,1590.9,1590.8,29.463561]
[1673900621932,0.08638027,1590.9,1590.8,30.10990018]
[1673900623416,0.08638027,1590.9,1590.8,32.10990018]
[1673900625145,2.7e-07,1590.9,1590.8,32.10990018]
[1673900625972,2.7e-07,1590.9,1590.8,33.52490018]
[1673900626537,0.09260442,1591.2,1590.9,0.00199973]
[1673900626818,0.09260442,1591.2,1591.1,1.421]
[1673900627037,0.09260442,1591.2,1591.1,23.62250407]
[1673900628916,0.09260442,1591.2,1591.1,22.20150407]
[1673900630929,0.89060442,1591.2,1591.1,22.20150407]
[1673900631283,0.89060442,1591.2,1591.1,18.85488]
[1673900632583,1.1310253,1591.2,1591.1,19.08488]
[1673900633724,0.89060442,1591.2,1591.1,19.08488]
[1673900633912,0.09260442,1591.2,1591.1,19.08488]
[1673900634877,0.89060442,1591.2,1591.1,19.08488]
[1673900635066,0.09260442,1591.2,1591.1,19.08488]
[1673900635695,0.09260442,1591.2,1591.1,18.85488]
[1673900636011,0.89060442,1591.2,1591.1,18.85488]
[1673900636267,0.89060442,1591.2,1591.1,12.56992]
[1673900636460,1.1310253,1591.2,1591.1,6.28496]
[1673900636649,3.95448581,1591.2,1591.1,6.28496]
[1673900637128,2.5520253,1591.2,1591.0,12.5707]
[1673900637436,1.85520253,1591.1,1591.0,12.5707]
[1673900637647,3.27620253,1591.1,1591.0,12.5707]
[1673900639286,4.67866304,1591.1,1591.0,12.5707]
[1673900641628,4.67866304,1591.1,1590.9,6.28747973]
[1673900641823,4.67866304,1591.1,1590.9,0.00199973]
[1673900642048,1.8888663,1591.0,1590.9,0.00199973]
[1673900643277,3.29132681,1591.0,1590.9,0.00199973]
[1673900643487,1.8888663,1591.0,1590.9,0.00199973]
[1673900643709,3.29132681,1591.0,1590.9,0.00199973]
[1673900644136,1.8888663,1591.0,1590.9,0.00199973]
[1673900644312,3.29132681,1591.0,1590.9,0.00199973]
[1673900647154,5.16176702,1591.0,1590.9,0.00199973]
[1673900647407,3.75930651,1591.0,1590.9,0.00199973]
[1673900648512,5.15595666,1591.0,1590.9,0.00199973]
[1673900649392,3.75930651,1591.0,1590.9,0.00199973]
[1673900650311,5.1559336,1591.0,1590.9,0.00199973]
[1673900650977,5.1559336,1591.0,1590.8,6.28611]
[1673900650978,1.60012351,1590.9,1590.8,6.28611]
[1673900651152,3.01212351,1590.9,1590.8,6.28611]
[1673900651492,5.08345631,1590.9,1590.7,12.57286]
[1673900651669,2.80862709,1590.8,1590.6,6.28692]
[1673900653068,4.6790673,1590.8,1590.6,6.28692]
[1673900653840,1.39662709,1590.7,1590.6,6.28692]
[1673900655067,4.6790673,1590.8,1590.6,6.28692]
[1673900655277,1.86453382,1590.7,1590.6,6.28692]
[1673900655488,0.46790673,1590.7,1590.6,6.28692]
[1673900655745,1.90773891,1590.7,1590.4,12.57487]
[1673900655958,2.80801774,1590.6,1590.4,6.28736]
[1673900656172,1.421,1590.5,1590.3,6.28789]
[1673900656329,1.7421,1590.4,1590.3,6.28789]
[1673900657419,1.7421,1590.4,1590.2,6.28819]
[1673900658012,1.421,1590.3,1590.1,0.10780284]
[1673900658223,1.412,1590.2,1590.1,0.10780284]
[1673900659119,1.43483218,1590.3,1590.1,0.10780284]
[1673900659338,1.74348322,1590.2,1590.1,0.10780284]
[1673900663276,0.14348322,1590.2,1590.1,12.68562284]
[1673900663530,1.43483218,1590.3,1590.1,12.68562284]
[1673900663747,1.43483218,1590.3,1590.1,18.97453284]
[1673900663910,0.01883218,1590.3,1590.1,18.97453284]
[1673900664357,16.6418,1590.5,1590.1,18.97453284]
[1673900664567,18.44558177,1590.5,1590.1,18.97453284]
[1673900666385,16.6418,1590.5,1590.1,22.09115691]
[1673900667696,15.2228,1590.5,1590.1,22.09115691]
[1673900672075,0.01883218,1590.4,1590.1,12.68562284]
[1673900672230,0.01883218,1590.4,1590.1,12.68255774]
[1673900672435,1.82469717,1590.4,1590.1,6.39364774]
[1673900672886,3.24569717,1590.4,1590.1,6.39364774]
[1673900673070,3.24569717,1590.4,1590.1,12.68255774]
[1673900673287,3.24569717,1590.4,1590.1,18.97146774]
[1673900674891,1.82469717,1590.4,1590.1,18.97146774]
[1673900675095,15.2228,1590.5,1590.2,3.11662407]
[1673900675277,1.39601774,1590.7,1590.3,21.98098407]
[1673900675486,1.39601774,1590.7,1590.3,22.21098407]
[1673900676885,1.39601774,1590.7,1590.4,3.11662407]
[1673900677097,15.4053,1590.8,1590.6,18.86079]
[1673900677317,1.39601774,1590.8,1590.6,18.86079]
[1673900678157,1.39601774,1590.8,1590.6,6.28693]
[1673900678550,1.39601774,1590.8,1590.4,6.28744]
[1673900678551,3.26645795,1590.8,1590.4,6.28744]
[1673900678763,1.421,1590.6,1590.3,9.28775]
[1673900678971,2.81701774,1590.6,1590.3,6.28775]
[1673900679409,2.83584992,1590.6,1590.3,6.28775]
[1673900681741,2.83584992,1590.6,1590.2,12.5765]
[1673900684937,1.39601774,1590.5,1590.2,12.5765]
[1673900685075,1.86664675,1590.5,1590.2,12.5765]
[1673900685285,3.28764675,1590.5,1590.2,6.28819]
[1673900686181,1.412,1590.4,1590.1,6.39331774]
[1673900686348,2.80801774,1590.4,1590.1,6.39331774]
[1673900687171,1.421,1590.3,1590.1,0.10473774]
[1673900687487,1.7421,1590.2,1590.1,0.10473774]
[1673900688955,3.1591,1590.2,1590.1,0.10473774]
[1673900694702,4.55511774,1590.2,1590.1,0.10473774]
[1673900695543,4.55511774,1590.2,1590.1,0.10169425]
[1673900696063,4.55233283,1590.2,1590.1,0.10169425]
[1673900696377,6.42277304,1590.2,1590.1,0.10169425]
[1673900696554,4.55233283,1590.2,1590.1,0.10169425]
[1673900699114,3.15631509,1590.2,1590.1,0.10169425]
[1673900700323,4.55233283,1590.2,1590.1,0.10169425]
[1673900703829,0.93731509,1590.2,1590.1,0.10169425]
[1673900704194,1.41484992,1590.3,1590.1,0.10169425]
[1673900708725,1.3961273,1590.6,1590.3,0.93633955]
[1673900709034,1.3961273,1590.6,1590.4,12.57544]
[1673900709413,1.3961273,1590.6,1590.4,18.86316]
[1673900709869,1.3961273,1590.6,1590.4,12.57544]
[1673900710031,1.3961273,1590.6,1590.3,7.22413955]
[1673900710242,1.3961273,1590.5,1590.3,0.93633955]
[1673900710681,3.26656751,1590.5,1590.3,0.93633955]
[1673900711241,3.26656751,1590.5,1590.3,7.22445955]
[1673900711551,1.3961273,1590.5,1590.3,13.51257955]
[1673900712451,1.3961273,1590.5,1590.3,0.93633955]
[1673900712452,1.3961273,1590.4,1590.3,0.93633955]
[1673900712660,1.53574003,1590.4,1590.3,0.93633955]
[1673900713086,3.40618024,1590.4,1590.3,0.93633955]
[1673900713412,1.53574003,1590.4,1590.3,0.93633955]
[1673900713637,1.3961273,1590.4,1590.3,0.93633955]
[1673900714476,1.3961273,1590.4,1590.3,7.22445955]
[1673900714690,1.39318991,1590.4,1590.3,7.22445955]
[1673900716767,1.39318991,1590.4,1590.3,0.93633955]
[1673900717336,3.26363012,1590.4,1590.3,0.93633955]
[1673900717554,4.45254516,1590.4,1590.3,0.93633955]
[1673900717696,18.29797911,1590.4,1590.3,0.93633955]
[1673900718122,1.417,1590.4,1590.3,0.93633955]
[1673900718327,2.80922996,1590.5,1590.3,0.93633955]
[1673900718328,1.86498446,1590.5,1590.3,0.93633955]
[1673900718961,4.19621504,1590.6,1590.3,0.93633955]
[1673900719535,1.86498446,1590.5,1590.3,0.93633955]
[1673900722885,3.75023058,1590.6,1590.3,19.80039955]
[1673900722886,4.19621504,1590.6,1590.3,19.80039955]
[1673900723064,4.19621504,1590.6,1590.3,21.78043951]
[1673900723271,1.86498446,1590.6,1590.3,21.78043951]
[1673900723708,1.40014225,1590.5,1590.3,21.78043951]
[1673900726388,3.26512671,1590.6,1590.3,21.78043951]
[1673900726684,1.40014225,1590.5,1590.3,19.80039955]
[1673900726902,1.40014225,1590.5,1590.3,13.51227955]
[1673900727487,1.40014225,1590.5,1590.3,19.80039955]
[1673900728454,1.40014225,1590.6,1590.3,19.80039955]
[1673900729947,1.40014225,1590.6,1590.3,22.91702362]
[1673900730228,1.40014225,1590.6,1590.4,2.29170236]
[1673900730458,1.40014225,1590.7,1590.5,28.26594407]
[1673900731495,3.26512671,1590.8,1590.6,3.11662407]
[1673900731857,1.40014225,1590.9,1590.7,23.62724407]
[1673900732014,1.40014225,1590.9,1590.8,2.36272441]
[1673900732227,1.40014225,1590.9,1590.8,14.93500441]
[1673900732870,1.40014225,1591.0,1590.8,14.93500441]
[1673900733115,0.46809954,1590.9,1590.8,21.22114441]
[1673900733817,1.86824179,1590.9,1590.8,21.22114441]
[1673900734188,0.46809954,1590.9,1590.8,21.22114441]
[1673900734481,1.86824179,1590.9,1590.8,14.93500441]
[1673900734657,0.46809954,1590.9,1590.8,12.57228]
[1673900737372,1.86824179,1590.9,1590.8,12.57228]
[1673900737583,1.86824179,1590.9,1590.8,6.28614]
[1673900737846,1.86824179,1590.9,1590.7,12.57308]
[1673900738217,0.46809954,1590.9,1590.7,18.85962]
[1673900742258,0.84142217,1590.9,1590.7,6.28654]
[1673900742842,2.24156442,1590.9,1590.7,6.28654]
[1673900743091,4.53156442,1590.9,1590.7,6.28654]
[1673900747414,6.39654888,1590.9,1590.7,6.28654]
[1673900747633,4.53156442,1590.9,1590.7,6.28654]
[1673900749284,4.53156442,1590.9,1590.7,12.57308]
[1673900749706,6.39654888,1590.9,1590.7,12.57308]
[1673900750091,4.53156442,1590.9,1590.7,12.57308]
[1673900751170,6.39654888,1590.9,1590.7,12.57308]
[1673900751379,1.40014225,1590.8,1590.7,12.57308]
[1673900751633,6.02322625,1590.9,1590.7,12.57308]
[1673900751853,4.15824179,1590.9,1590.7,12.57308]
[1673900753213,4.97101815,1590.9,1590.7,12.57308]
[1673900753405,6.83600261,1590.9,1590.7,6.28654]
[1673900754241,6.02322625,1590.9,1590.7,12.57308]
[1673900755579,1.40014225,1590.8,1590.7,12.57308]
[1673900755825,1.40014225,1590.8,1590.7,6.28654]
[1673900756632,1.40014225,1590.8,1590.7,12.57308]
[1673900757592,1.40014225,1590.8,1590.7,18.85962]
[1673900758448,6.02322625,1590.9,1590.7,18.85962]
[1673900758825,6.02322625,1590.9,1590.7,21.374242]
[1673900760039,4.15824179,1590.9,1590.7,24.49086607]
[1673900760353,2.75809954,1590.9,1590.7,24.49086607]
[1673900760581,4.15824179,1590.9,1590.7,24.49086607]
[1673900760878,2.75809954,1590.9,1590.7,24.49086607]
[1673900761474,2.75809954,1590.9,1590.8,5.56571068]
[1673900761724,2.75809954,1590.9,1590.8,24.65413068]
[1673900763518,2.75809954,1590.9,1590.8,24.65023115]
[1673900765074,2.92146021,1590.9,1590.8,24.65023115]
[1673900765902,2.75809954,1590.9,1590.8,24.65023115]
[1673900769477,2.75809954,1590.9,1590.8,26.07123115]
[1673900769880,1.82210109,1590.9,1590.8,29.07123115]
[1673900771642,0.09408374,1591.1,1590.9,1.822]
[1673900771790,0.09408374,1591.1,1591.0,4.94982407]
[1673900771994,0.09408374,1591.1,1591.0,30.09122407]
[1673900772237,0.09408374,1591.1,1591.0,33.09122407]
[1673900774567,0.09260442,1591.2,1591.0,38.27025983]
[1673900774726,0.09260442,1591.2,1591.1,9.53762407]
[1673900774933,0.09260442,1591.2,1591.1,32.20162648]
[1673900775137,0.09260442,1591.2,1591.1,31.43162648]
[1673900775726,0.0953139,1591.4,1591.3,2.0]
[1673900776047,0.0953139,1591.5,1591.3,31.90430407]
[1673900776254,0.10173928,1591.6,1591.5,2.0]
[1673900776406,0.10173928,1591.6,1591.5,32.55110648]
[1673900776604,0.10173928,1591.6,1591.5,33.97210648]
[1673900777248,9.28e-06,1591.6,1591.5,36.97210648]
[1673900777459,0.07418925,1591.7,1591.5,36.97210648]
[1673900777723,0.07418925,1591.7,1591.6,7.75762407]
[1673900777883,0.07418925,1591.7,1591.6,23.41475672]
[1673900778532,0.07418925,1591.7,1591.6,29.69773672]
[1673900779379,0.0953139,1591.8,1591.6,29.69773672]
[1673900779603,1.18801218,1591.9,1591.8,2.0]
[1673900779788,2.18e-06,1591.9,1591.8,6.56104529]
[1673900780003,0.1112561,1592.0,1591.8,29.86799101]
[1673900780340,0.1112561,1592.0,1591.9,3.34662407]
[1673900780556,0.1112561,1592.0,1591.9,26.60202407]
[1673900780926,0.10824934,1592.3,1591.9,30.33548652]
[1673900781203,0.10824934,1592.3,1592.0,9.53762407]
[1673900781496,0.10824934,1592.3,1592.2,1.415]
[1673900781564,0.10824934,1592.3,1592.2,7.53162407]
[1673900781898,0.10824934,1592.3,1592.2,20.32284407]
[1673900783931,0.10824934,1592.3,1592.2,26.60345407]
[1673900784128,0.10824934,1592.3,1592.2,25.18845407]
[1673900784352,0.10824934,1592.3,1592.2,28.43077672]
[1673900787083,0.90624934,1592.3,1592.2,21.95845407]
[1673900787298,0.90624934,1592.3,1592.2,12.56122]
[1673900787299,1.70824934,1592.3,1592.2,12.56122]
[1673900788289,0.90624934,1592.3,1592.2,18.84183]
[1673900788500,0.10824934,1592.3,1592.2,18.84183]
[1673900789028,0.90624934,1592.3,1592.2,18.84183]
[1673900789721,0.90624934,1592.3,1592.2,12.56122]
[1673900789914,0.90624934,1592.3,1592.2,6.28061]
[1673900790131,1.13877427,1592.3,1592.2,6.28061]
[1673900790317,1.13877427,1592.3,1592.1,6.28101]
[1673900790972,1.13877427,1592.3,1592.1,12.56202]
[1673900792848,1.13877427,1592.3,1592.1,6.28101]
[1673900793055,2.55977427,1592.3,1592.0,6.28108]
[1673900793322,2.833,1592.1,1591.7,0.084054]
[1673900793650,1.421,1592.0,1591.8,6.2819]
[1673900793787,1.421,1592.0,1591.7,12.648754]
[1673900794001,0.1421,1591.9,1591.7,12.648754]
[1673900794579,1.421,1592.0,1591.7,12.648754]
[1673900798894,1.421,1592.0,1591.7,18.931344]
[1673900800506,1.418,1592.1,1591.7,18.931344]
[1673900800807,26.505,1592.2,1591.7,18.931344]
[1673900801032,29.16632493,1592.2,1591.8,0.23]
[1673900801190,29.16632493,1592.2,1591.8,6.28192]
[1673900801191,1.421,1592.1,1591.8,6.28192]
[1673900802463,1.421,1592.0,1591.7,6.366384]
[1673900802710,0.1421,1591.9,1591.7,6.366384]
[1673900803287,0.1421,1591.9,1591.7,6.36401782]
[1673900804040,1.421,1592.0,1591.7,12.64660782]
[1673900804240,1.421,1592.1,1591.7,18.92919782]
[1673900807793,29.17532493,1592.2,1591.7,18.92919782]
[1673900810595,25.093,1592.2,1591.7,25.78584581]
[1673900810814,25.093,1592.2,1591.8,3.23]
[1673900811131,25.093,1592.2,1591.9,18.84516]
[1673900813008,29.77912671,1592.2,1591.9,12.56344]
[1673900813299,2.97791267,1592.1,1591.9,12.56344]
[1673900814042,27.91414225,1592.2,1591.9,21.96186407]
[1673900814266,27.91414225,1592.2,1592.0,0.23]
[1673900814267,18.15064225,1592.2,1592.0,0.23]
[1673900814598,18.15064225,1592.2,1592.1,12.56202]